fUSD/lending_fUSD_20250109
["ID","MTS","AMOUNT","RATE_DAILY","PERIOD"]
[348228420,1736405442095,-641.98429978,0.00010267,2]
[348228421,1736405442104,-500.0,0.00010267,2]
[348228422,1736405442115,-500.0,0.00010267,2]
[348228423,1736405442124,-500.0,0.00010267,2]
[348228424,1736405442134,-500.0,0.00010267,2]
[348228425,1736405442144,-500.0,0.00010267,2]
[348228426,1736405442154,-500.0,0.00010267,2]
[348228427,1736405442163,-500.0,0.00010267,2]
[348228428,1736405442173,-528.62,0.00010267,2]
[348228429,1736405442183,-500.0,0.00010267,2]
[348228430,1736405442193,-502.87979702,0.00010267,2]
[348228431,1736405442202,-511.56,0.00010267,2]
[348228432,1736405442212,-500.0,0.00010267,2]
[348228433,1736405442222,-773.16,0.00010267,2]
[348228434,1736405442231,-500.0,0.00010267,2]
[348228436,1736405442241,-636.27,0.00010267,2]
[348228438,1736405442250,-1000.0,0.00010267,2]
[348228440,1736405442260,-500.0,0.00010267,2]
[348228441,1736405442270,-502.81687659,0.00010267,2]
[348228443,1736405442278,-500.0,0.00010267,2]
[348228444,1736405442288,-500.0,0.00010267,2]
[348228445,1736405442297,-500.0,0.00010267,2]
[348228446,1736405442307,-500.0,0.00010267,2]
[348228447,1736405442317,-555.75189082,0.00010267,2]
[348228448,1736405442326,-500.0,0.00010267,2]
[348228449,1736405442337,-392.24540261,0.00010267,2]
[348228450,1736405442346,-861.19,0.00010267,2]
[348228451,1736405442356,-500.0,0.00010267,2]
[348228452,1736405442366,-500.0,0.00010267,2]
[348228454,1736405442376,-500.0,0.00010267,2]
[348228456,1736405442385,-500.0,0.00010267,2]
[348228458,1736405442395,-500.0,0.00010267,2]
[348228459,1736405442405,-500.0,0.00010268,2]
[348228460,1736405442415,-392.51732751,0.00010268,2]
[348228461,1736405442424,-500.0,0.00010268,2]
[348228462,1736405442433,-500.0,0.00010268,2]
[348228463,1736405442442,-500.0,0.00010268,2]
[348228464,1736405442451,-500.80541706,0.00010268,2]
[348228465,1736405442460,-500.0,0.00010268,2]
[348228466,1736405442470,-500.0,0.00010268,2]
[348228467,1736405442479,-500.0,0.00010268,2]
[348228468,1736405442488,-259.96327341,0.00010268,2]
[348228469,1736405442498,-585.14,0.00010268,2]
[348228470,1736405442507,-500.0,0.00010268,2]
[348228471,1736405442518,-500.0,0.00010268,2]
[348228472,1736405442531,-500.0,0.00010268,2]
[348228473,1736405442542,-500.0,0.00010268,2]
[348228474,1736405442553,-500.0,0.00010268,2]
[348228475,1736405442563,-500.0,0.00010268,2]
[348228476,1736405442573,-500.0,0.00010268,2]
[348228477,1736405442583,-500.0,0.00010268,2]
[348228478,1736405442593,-297.42,0.00010268,2]
[348228479,1736405442603,-500.0,0.00010268,2]
[348228480,1736405442613,-500.0,0.00010268,2]
[348228481,1736405442623,-500.0,0.00010268,2]
[348228482,1736405442633,-500.0,0.00010268,2]
[348228483,1736405442642,-500.0,0.00010268,2]
[348228484,1736405442651,-500.0,0.00010268,2]
[348228485,1736405442660,-500.0,0.00010268,2]
[348228486,1736405442670,-583.37,0.00010268,2]
[348228487,1736405442679,-500.0,0.00010268,2]
[348228488,1736405442689,-500.0,0.00010268,2]
[348228489,1736405442699,-506.25196,0.00010268,2]
[348228490,1736405442709,-500.0,0.00010268,2]
[348228491,1736405442720,-620.24647691,0.00010268,2]
[348228492,1736405442730,-293.05859661,0.00010268,2]
[348228493,1736405442739,-312.67458298,0.00010268,2]
[348228494,1736405442748,-318.41563402,0.00010268,2]
[348228495,1736405442758,-500.0,0.00010268,2]
[348228496,1736405442768,-500.0,0.00010268,2]
[348228497,1736405442778,-500.0,0.00010268,2]
[348228498,1736405442787,-500.0,0.00010268,2]
[348228500,1736405442796,-500.0,0.00010268,2]
[348228502,1736405442805,-487.59467077,0.00010268,2]
[348228504,1736405442815,-617.49797229,0.00010268,2]
[348228508,1736405442824,-500.0,0.00010268,2]
[348228509,1736405443010,-500.0,0.00010268,2]
[348228510,1736405443020,-500.0,0.00010268,2]
[348228511,1736405443030,-500.0,0.00010268,2]
[348228512,1736405443040,-500.0,0.00010268,2]
[348228513,1736405443049,-500.0,0.00010268,2]
[348228514,1736405443058,-500.0,0.00010268,2]
[348228515,1736405443068,-527.39,0.00010268,2]
[348228516,1736405443078,-500.0,0.00010268,2]
[348228517,1736405443087,-500.0,0.00010268,2]
[348228518,1736405443097,-500.0,0.00010268,2]
[348228519,1736405443106,-500.0,0.00010268,2]
[348228520,1736405443116,-500.0,0.00010268,2]
[348228521,1736405443125,-499.77827883,0.00010268,2]
[348228522,1736405443134,-500.0,0.00010268,2]
[348228523,1736405443144,-500.0,0.00010268,2]
[348228524,1736405443153,-500.0,0.00010268,2]
[348228525,1736405443163,-500.0,0.00010268,2]
[348228526,1736405443172,-500.0,0.00010268,2]
[348228527,1736405443182,-500.0,0.00010268,2]
[348228528,1736405443191,-500.0,0.00010268,2]
[348228529,1736405443200,-500.0,0.00010268,2]
[348228530,1736405443210,-500.0,0.00010268,2]
[348228531,1736405443219,-500.0,0.00010268,2]
[348228532,1736405443230,-500.0,0.00010268,2]
[348228533,1736405443239,-500.0,0.00010268,2]
[348228534,1736405443249,-500.0,0.00010268,2]
[348228535,1736405443259,-500.0,0.00010268,2]
[348228536,1736405443269,-500.0,0.00010268,2]
[348228537,1736405443278,-500.0,0.00010268,2]
[348228538,1736405443287,-500.0,0.00010268,2]
[348228539,1736405443296,-500.0,0.00010268,2]
[348228540,1736405443305,-500.0,0.00010268,2]
[348228541,1736405443314,-356.93188855,0.00010268,2]
[348228542,1736405443323,-500.0,0.00010268,2]
[348228543,1736405443333,-500.0,0.00010268,2]
[348228544,1736405443342,-500.0,0.00010268,2]
[348228545,1736405443351,-500.0,0.00010268,2]
[348228546,1736405443360,-500.0,0.00010268,2]
[348228547,1736405443369,-500.0,0.00010268,2]
[348228548,1736405443379,-500.0,0.00010268,2]
[348228549,1736405443387,-500.0,0.00010268,2]
[348228550,1736405443397,-500.0,0.00010268,2]
[348228551,1736405443406,-500.0,0.00010268,2]
[348228552,1736405443415,-500.0,0.00010268,2]
[348228553,1736405443425,-461.22,0.00010268,2]
[348228554,1736405443434,-500.0,0.00010268,2]
[348228555,1736405443443,-500.0,0.00010268,2]
[348228556,1736405443452,-500.0,0.00010268,2]
[348228557,1736405443461,-327.85193204,0.00010268,2]
[348228558,1736405443471,-500.0,0.00010268,2]
[348228559,1736405443480,-500.0,0.00010268,2]
[348228560,1736405443489,-500.0,0.00010268,2]
[348228561,1736405443498,-500.0,0.00010268,2]
[348228562,1736405443507,-500.0,0.00010268,2]
[348228563,1736405443518,-551.48,0.00010268,2]
[348228564,1736405443532,-500.0,0.00010268,2]
[348228565,1736405443543,-500.0,0.00010268,2]
[348228566,1736405443553,-502.40358753,0.00010268,2]
[348228567,1736405443562,-500.0,0.00010268,2]
[348228568,1736405443572,-500.0,0.00010268,2]
[348228569,1736405443580,-500.0,0.00010268,2]
[348228570,1736405443590,-506.75276599,0.00010268,2]
[348228571,1736405443599,-500.0,0.00010268,2]
[348228572,1736405443610,-526.09288813,0.00010268,2]
[348228573,1736405443621,-1406.05,0.00010268,2]
[348228574,1736405443632,-500.0,0.00010268,2]
[348228575,1736405443642,-500.0,0.00010268,2]
[348228576,1736405443652,-500.0,0.00010268,2]
[348228577,1736405443662,-500.0,0.00010268,2]
[348228578,1736405443672,-500.0,0.00010268,2]
[348228579,1736405443682,-624.98,0.00010268,2]
[348228580,1736405443691,-500.0,0.00010268,2]
[348228581,1736405443701,-1734.0,0.00010268,2]
[348228582,1736405443710,-669.48,0.00010268,2]
[348228583,1736405443719,-500.0,0.00010268,2]
[348228584,1736405443729,-1267.72,0.00010268,2]
[348228585,1736405443738,-811.83,0.00010268,2]
[348228586,1736405443747,-757.89,0.00010268,2]
[348228587,1736405443756,-1576.59,0.00010268,2]
[348228588,1736405443767,-500.0,0.00010273,2]
[348228589,1736405443776,-754.74,0.00010273,2]
[348228590,1736405443786,-1290.53,0.00010273,2]
[348228591,1736405443795,-578.1,0.00010273,2]
[348228592,1736405443804,-612.53,0.00010273,2]
[348228593,1736405443813,-373.37474946,0.00010273,2]
[348228594,1736405443823,-992.22,0.00010273,2]
[348228595,1736405443832,-1322.04,0.00010273,2]
[348228596,1736405443841,-601.55,0.00010273,2]
[348228597,1736405443851,-543.29,0.00010273,2]
[348228598,1736405443860,-500.0,0.00010273,2]
[348228599,1736405443869,-400.52025323,0.00010279,2]
[348228600,1736405443879,-150.0,0.000103,2]
[348228601,1736405443888,-4479.59195187,0.00010314,2]
[348228602,1736405443898,-170.49861164,0.0001036,2]
[348228603,1736405443907,-1000.0,0.00010373,2]
[348228604,1736405443917,-150.0,0.000104,2]
[348228605,1736405443927,-5558.0,0.000104,5]
[348228606,1736405443936,-231.0,0.000104,2]
[348228607,1736405443947,-500.0,0.0001041,2]
[348228608,1736405443957,-1000.0,0.00010411,2]
[348228609,1736405443966,-1000.0,0.00010411,2]
[348228610,1736405443976,-1000.0,0.00010411,2]
[348228611,1736405443985,-1000.0,0.00010411,2]
[348228612,1736405443994,-1000.0,0.00010411,2]
[348228613,1736405444003,-1000.0,0.00010411,2]
[348228614,1736405444013,-1000.0,0.00010411,2]
[348228615,1736405444022,-1000.0,0.00010411,2]
[348228616,1736405444031,-1000.0,0.00010411,2]
[348228617,1736405444040,-1000.0,0.00010411,2]
[348228618,1736405444049,-1000.0,0.00010411,2]
[348228619,1736405444059,-457.0,0.00010411,2]
[348228620,1736405444068,-1000.0,0.00010411,2]
[348228621,1736405444077,-1000.0,0.00010411,2]
[348228622,1736405444086,-1000.0,0.00010411,2]
[348228623,1736405444095,-1000.0,0.00010411,2]
[348228624,1736405444104,-1000.0,0.00010411,2]
[348228625,1736405444114,-1000.0,0.00010411,2]
[348228626,1736405444123,-1000.0,0.00010411,2]
[348228627,1736405444132,-1000.0,0.00010411,2]
[348228628,1736405444142,-1000.0,0.00010411,2]
[348228629,1736405444153,-1000.0,0.00010411,2]
[348228630,1736405444163,-1000.0,0.00010411,2]
[348228631,1736405444172,-1000.0,0.00010411,2]
[348228632,1736405444181,-1000.0,0.00010411,2]
[348228633,1736405444191,-1000.0,0.00010411,2]
[348228634,1736405444200,-1000.0,0.00010411,2]
[348228635,1736405444210,-1000.0,0.00010411,2]
[348228636,1736405444219,-1000.0,0.00010411,2]
[348228637,1736405444228,-1000.0,0.00010411,2]
[348228638,1736405444237,-1000.0,0.00010411,2]
[348228639,1736405444247,-1000.0,0.00010411,2]
[348228640,1736405444256,-1000.0,0.00010411,2]
[348228641,1736405444265,-1000.0,0.00010411,2]
[348228642,1736405444275,-1000.0,0.00010411,2]
[348228643,1736405444284,-1000.0,0.00010411,2]
[348228644,1736405444294,-1000.0,0.00010411,2]
[348228645,1736405444303,-1000.0,0.00010411,2]
[348228646,1736405444312,-1000.0,0.00010411,2]
[348228647,1736405444321,-1000.0,0.00010411,2]
[348228648,1736405444330,-1000.0,0.00010411,2]
[348228649,1736405444340,-1000.0,0.00010411,2]
[348228650,1736405444350,-1000.0,0.00010411,2]
[348228651,1736405444359,-1000.0,0.00010411,2]
[348228652,1736405444367,-275.0,0.00010411,2]
[348228653,1736405444377,-400.52025323,0.00010415,2]
[348228654,1736405444386,-4479.59195187,0.00010417,2]
[348228655,1736405444395,-185.52,0.00010429,2]
[348228656,1736405444404,-628.67,0.00010429,2]
[348228657,1736405444414,-1046.37,0.00010435,2]
[348228658,1736405444423,-1804.4167693,0.000105,2]
[348228659,1736405444432,-1000.0,0.000105,2]
[348228660,1736405444441,-4479.59195187,0.00010521,2]
[348228661,1736405444451,-40308.7856872,0.00010539,2]
[348228662,1736405444460,-500.0,0.00010541,2]
[348228663,1736405444469,-500.0,0.00010541,2]
[348228664,1736405444479,-682.86,0.00010541,2]
[348228665,1736405444488,-500.0,0.00010541,2]
[348228666,1736405444497,-500.0,0.00010541,2]
[348228667,1736405444507,-522.31,0.00010541,2]
[348228668,1736405444517,-500.0,0.00010541,2]
[348228669,1736405444530,-1010.57,0.00010541,2]
[348228670,1736405444540,-500.0,0.00010541,2]
[348228671,1736405444549,-500.0,0.00010541,2]
[348228672,1736405444559,-500.0,0.00010541,2]
[348228673,1736405444568,-500.0,0.00010541,2]
[348228674,1736405444579,-500.0,0.00010541,2]
[348228675,1736405444588,-500.0,0.00010541,2]
[348228676,1736405444598,-500.0,0.00010541,2]
[348228677,1736405444610,-500.0,0.00010541,2]
[348228678,1736405444619,-500.0,0.00010541,2]
[348228679,1736405444628,-326.7167589,0.00010541,2]
[348228680,1736405444638,-749.469039,0.00010541,2]
[348228681,1736405444648,-500.0,0.00010541,2]
[348228682,1736405444657,-500.0,0.00010541,2]
[348228683,1736405444666,-500.0,0.00010541,2]
[348228684,1736405444676,-1339.52,0.00010541,2]
[348228685,1736405444685,-500.0,0.00010541,2]
[348228686,1736405444696,-683.333522,0.00010541,2]
[348228687,1736405444706,-500.0,0.00010541,2]
[348228688,1736405444716,-500.0,0.00010541,2]
[348228689,1736405444726,-500.0,0.00010541,2]
[348228690,1736405444736,-500.0,0.00010541,2]
[348228691,1736405444745,-507.39731679,0.00010541,2]
[348228692,1736405444755,-500.0,0.00010541,2]
[348228693,1736405444766,-519.37,0.00010541,2]
[348228694,1736405444775,-500.0,0.00010541,2]
[348228695,1736405444785,-463.95233646,0.00010541,2]
[348228696,1736405444795,-508.24036392,0.00010541,2]
[348228697,1736405444805,-305.11441653,0.00010541,2]
[348228698,1736405444814,-500.0,0.00010541,2]
[348228699,1736405444824,-471.61901154,0.00010541,2]
[348228700,1736405444833,-882.62,0.00010541,2]
[348228701,1736405444842,-500.0,0.00010541,2]
[348228702,1736405444851,-500.0,0.00010541,2]
[348228703,1736405444860,-500.0,0.00010541,2]
[348228704,1736405444870,-500.0,0.00010541,2]
[348228705,1736405444879,-500.0,0.00010541,2]
[348228706,1736405444889,-500.0,0.00010541,2]
[348228707,1736405444898,-500.0,0.00010541,2]
[348228708,1736405444907,-500.0,0.00010541,2]
[348228709,1736405444917,-500.0,0.00010541,2]
[348228710,1736405444926,-500.0,0.00010541,2]
[348228711,1736405444935,-403.52731072,0.00010541,2]
[348228712,1736405444944,-327.27,0.00010541,2]
[348228713,1736405444954,-500.0,0.00010541,2]
[348228714,1736405444963,-903.58,0.00010541,2]
[348228715,1736405444973,-500.0,0.00010541,2]
[348228716,1736405444982,-1421.37,0.00010541,2]
[348228717,1736405444991,-500.0,0.00010541,2]
[348228718,1736405445000,-500.0,0.00010541,2]
[348228719,1736405445010,-500.0,0.00010541,2]
[348228720,1736405445019,-500.0,0.00010541,2]
[348228721,1736405445027,-500.0,0.00010541,2]
[348228722,1736405445036,-500.0,0.00010541,2]
[348228723,1736405445046,-500.0,0.00010541,2]
[348228724,1736405445056,-500.0,0.00010541,2]
[348228725,1736405445066,-583.33,0.00010541,2]
[348228726,1736405445076,-500.0,0.00010541,2]
[348228727,1736405445085,-500.0,0.00010541,2]
[348228728,1736405445095,-1125.84,0.00010541,2]
[348228729,1736405445104,-500.0,0.00010541,2]
[348228730,1736405445114,-500.0,0.00010541,2]
[348228731,1736405445123,-500.0,0.00010541,2]
[348228732,1736405445133,-500.0,0.00010541,2]
[348228733,1736405445142,-2991.42,0.00010541,2]
[348228734,1736405445152,-500.0,0.00010541,2]
[348228735,1736405445162,-500.0,0.00010541,2]
[348228736,1736405445172,-500.0,0.00010541,2]
[348228737,1736405445181,-500.0,0.00010541,2]
[348228738,1736405445191,-500.0,0.00010541,2]
[348228739,1736405445201,-500.0,0.00010541,2]
[348228740,1736405445210,-500.0,0.00010541,2]
[348228741,1736405445219,-500.0,0.00010541,2]
[348228742,1736405445229,-500.0,0.00010541,2]
[348228743,1736405445239,-500.0,0.00010541,2]
[348228744,1736405445249,-599.79,0.00010541,2]
[348228745,1736405445259,-500.0,0.00010541,2]
[348228746,1736405445269,-500.0,0.00010541,2]
[348228747,1736405445279,-500.0,0.00010541,2]
[348228748,1736405445288,-500.0,0.00010541,2]
[348228749,1736405445298,-500.0,0.00010541,2]
[348228750,1736405445307,-500.0,0.00010541,2]
[348228751,1736405445317,-500.0,0.00010541,2]
[348228752,1736405445327,-500.0,0.00010541,2]
[348228753,1736405445336,-500.0,0.00010541,2]
[348228754,1736405445345,-500.0,0.00010541,2]
[348228755,1736405445354,-523.16,0.00010541,2]
[348228756,1736405445364,-500.0,0.00010541,2]
[348228757,1736405445374,-489.47,0.00010541,2]
[348228758,1736405445384,-500.0,0.00010541,2]
[348228759,1736405445393,-466.4174585,0.00010541,2]
[348228760,1736405445403,-500.0,0.00010541,2]
[348228761,1736405445412,-723.06,0.00010541,2]
[348228762,1736405445422,-500.0,0.00010541,2]
[348228763,1736405445431,-308.79394907,0.00010541,2]
[348228764,1736405445441,-256.41760065,0.00010541,2]
[348228765,1736405445450,-500.0,0.00010541,2]
[348228766,1736405445460,-500.0,0.00010541,2]
[348228767,1736405445469,-894.33,0.00010541,2]
[348228768,1736405445479,-500.0,0.00010541,2]
[348228769,1736405445488,-500.0,0.00010541,2]
[348228770,1736405445497,-500.0,0.00010541,2]
[348228771,1736405445507,-500.0,0.00010541,2]
[348228772,1736405445517,-500.0,0.00010541,2]
[348228773,1736405445534,-843.34,0.00010541,2]
[348228774,1736405445544,-500.0,0.00010541,2]
[348228775,1736405445554,-3007.9,0.00010541,2]
[348228776,1736405445563,-500.0,0.00010541,2]
[348228777,1736405445574,-500.0,0.00010541,2]
[348228778,1736405445583,-500.0,0.00010541,2]
[348228779,1736405445592,-500.0,0.00010541,2]
[348228780,1736405445602,-500.0,0.00010541,2]
[348228781,1736405445612,-500.0,0.00010541,2]
[348228782,1736405445621,-500.0,0.00010541,2]
[348228783,1736405445631,-500.0,0.00010541,2]
[348228784,1736405445641,-1064.22,0.00010541,2]
[348228785,1736405445651,-1512.81,0.00010541,2]
[348228786,1736405445660,-607.29,0.00010541,2]
[348228787,1736405445669,-500.0,0.00010541,2]
[348228788,1736405445679,-500.0,0.00010541,2]
[348228789,1736405445688,-507.08584747,0.00010541,2]
[348228790,1736405445699,-497.19276236,0.00010541,2]
[348228791,1736405445710,-500.0,0.00010541,2]
[348228792,1736405445721,-551.28,0.00010541,2]
[348228793,1736405445731,-604.73,0.00010541,2]
[348228794,1736405445743,-500.0,0.00010541,2]
[348228795,1736405445754,-500.0,0.00010541,2]
[348228796,1736405445765,-500.0,0.00010541,2]
[348228797,1736405445775,-500.0,0.00010541,2]
[348228798,1736405445785,-809.42,0.00010541,2]
[348228799,1736405445796,-500.0,0.00010541,2]
[348228800,1736405445805,-500.0,0.00010541,2]
[348228801,1736405445815,-507.84867024,0.00010541,2]
[348228802,1736405445825,-500.0,0.00010541,2]
[348228803,1736405445835,-1464.42,0.00010541,2]
[348228805,1736405445845,-500.0,0.00010541,2]
[348228807,1736405445854,-1362.68,0.00010541,2]
[348228808,1736405445864,-542.78704797,0.00010541,2]
[348228810,1736405445873,-1152.04,0.00010541,2]
[348228812,1736405445883,-500.0,0.00010541,2]
[348228814,1736405445892,-500.0,0.00010541,2]
[348228816,1736405445901,-500.0,0.00010541,2]
[348228818,1736405445910,-500.0,0.00010541,2]
[348228820,1736405445920,-500.0,0.00010541,2]
[348228822,1736405445929,-500.0,0.00010541,2]
[348228824,1736405445939,-500.0,0.00010541,2]
[348228826,1736405445948,-500.0,0.00010541,2]
[348228828,1736405445958,-500.0,0.00010541,2]
[348228830,1736405445967,-786.45,0.00010541,2]
[348228832,1736405445977,-2052.45,0.00010541,2]
[348228834,1736405445986,-504.36999896,0.00010541,2]
[348228836,1736405445996,-500.0,0.00010541,2]
[348228838,1736405446005,-500.0,0.00010541,2]
[348228840,1736405446017,-500.0,0.00010541,2]
[348228842,1736405446026,-500.0,0.00010541,2]
[348228844,1736405446036,-500.0,0.00010541,2]
[348228846,1736405446046,-500.0,0.00010541,2]
[348228848,1736405446056,-500.0,0.00010541,2]
[348228850,1736405446065,-500.0,0.00010541,2]
[348228852,1736405446075,-667.94,0.00010541,2]
[348228855,1736405446085,-500.0,0.00010541,2]
[348228857,1736405446095,-500.0,0.00010541,2]
[348228859,1736405446104,-500.0,0.00010541,2]
[348228860,1736405446113,-500.0,0.00010541,2]
[348228862,1736405446122,-500.0,0.00010541,2]
[348228864,1736405446132,-500.0,0.00010541,2]
[348228866,1736405446141,-500.0,0.00010541,2]
[348228869,1736405446150,-500.0,0.00010541,2]
[348228870,1736405446159,-500.0,0.00010541,2]
[348228872,1736405446169,-500.0,0.00010541,2]
[348228875,1736405446179,-236.70713559,0.00010541,2]
[348228876,1736405446188,-924.9,0.00010541,2]
[348228878,1736405446198,-543.222302,0.00010541,2]
[348228881,1736405446208,-500.0,0.00010541,2]
[348228882,1736405446218,-500.0,0.00010541,2]
[348228884,1736405446227,-1149.08,0.00010541,2]
[348228886,1736405446236,-500.0,0.00010541,2]
[348228888,1736405446245,-505.18832106,0.00010541,2]
[348228890,1736405446256,-151.16618577,0.00010541,2]
[348228892,1736405446269,-179.55916,0.00010541,2]
[348228894,1736405446278,-500.0,0.00010541,2]
[348228896,1736405446287,-489.08281801,0.00010541,2]
[348228898,1736405446297,-654.67,0.00010541,2]
[348228900,1736405446306,-500.0,0.00010541,2]
[348228902,1736405446315,-753.42,0.00010541,2]
[348228904,1736405446326,-500.0,0.00010541,2]
[348228906,1736405446336,-500.0,0.00010541,2]
[348228908,1736405446346,-500.0,0.00010541,2]
[348228911,1736405446355,-500.0,0.00010541,2]
[348228912,1736405446364,-500.0,0.00010541,2]
[348228915,1736405446373,-500.0,0.00010541,2]
[348228917,1736405446382,-500.0,0.00010541,2]
[348228918,1736405446391,-500.0,0.00010541,2]
[348228920,1736405446401,-500.0,0.00010541,2]
[348228922,1736405446410,-500.0,0.00010541,2]
[348228924,1736405446419,-1570.8,0.00010541,2]
[348228927,1736405446428,-500.0,0.00010541,2]
[348228928,1736405446438,-1183.75,0.00010541,2]
[348228931,1736405446447,-500.0,0.00010541,2]
[348228932,1736405446456,-204.15,0.00010541,2]
[348228935,1736405446466,-500.0,0.00010541,2]
[348228937,1736405446475,-500.0,0.00010541,2]
[348228939,1736405446484,-500.0,0.00010541,2]
[348228941,1736405446493,-672.42,0.00010541,2]
[348228942,1736405446502,-500.0,0.00010541,2]
[348228944,1736405446512,-500.0,0.00010541,2]
[348228946,1736405446521,-500.0,0.00010541,2]
[348228948,1736405446535,-500.0,0.00010541,2]
[348228950,1736405446544,-500.0,0.00010541,2]
[348228952,1736405446553,-500.0,0.00010541,2]
[348228954,1736405446562,-500.0,0.00010541,2]
[348228956,1736405446573,-511.56,0.00010541,2]
[348228974,1736405446735,-500.0,0.00010541,2]
[348228976,1736405446746,-529.91761209,0.00010541,2]
[348228978,1736405446755,-773.16,0.00010541,2]
[348228980,1736405446766,-1000.0,0.00010541,2]
[348228982,1736405446775,-500.0,0.00010541,2]
[348228984,1736405446785,-500.0,0.00010541,2]
[348228986,1736405446794,-500.0,0.00010541,2]
[348228988,1736405446803,-500.0,0.00010541,2]
[348228990,1736405446812,-500.0,0.00010541,2]
[348228992,1736405446821,-500.0,0.00010541,2]
[348228994,1736405446831,-861.19,0.00010541,2]
[348228996,1736405446840,-500.0,0.00010541,2]
[348228998,1736405446850,-500.0,0.00010541,2]
[348229000,1736405446859,-500.0,0.00010541,2]
[348229002,1736405446868,-569.11602522,0.00010541,2]
[348229004,1736405446878,-500.0,0.00010541,2]
[348229006,1736405446887,-500.0,0.00010542,2]
[348229008,1736405446896,-500.0,0.00010542,2]
[348229010,1736405446905,-535.94083761,0.00010542,2]
[348229012,1736405446914,-613.91096147,0.00010542,2]
[348229014,1736405446924,-534.15813523,0.00010542,2]
[348229016,1736405446933,-602.74,0.00010542,2]
[348229018,1736405446941,-500.0,0.00010542,2]
[348229020,1736405446950,-500.0,0.00010542,2]
[348229022,1736405446960,-500.0,0.00010542,2]
[348229024,1736405446969,-500.0,0.00010542,2]
[348229026,1736405446979,-500.0,0.00010542,2]
[348229028,1736405446988,-500.0,0.00010542,2]
[348229030,1736405446998,-500.0,0.00010542,2]
[348229032,1736405447007,-500.0,0.00010542,2]
[348229034,1736405447017,-500.0,0.00010542,2]
[348229036,1736405447026,-500.0,0.00010542,2]
[348229038,1736405447035,-500.0,0.00010542,2]
[348229040,1736405447045,-500.0,0.00010542,2]
[348229042,1736405447055,-500.0,0.00010542,2]
[348229044,1736405447064,-500.0,0.00010542,2]
[348229046,1736405447074,-500.0,0.00010542,2]
[348229048,1736405447084,-365.98233359,0.00010542,2]
[348229050,1736405447093,-617.74058674,0.00010542,2]
[348229052,1736405447101,-500.0,0.00010542,2]
[348229054,1736405447110,-498.59741565,0.00010542,2]
[348229056,1736405447120,-232.19607704,0.00010542,2]
[348229058,1736405447129,-500.0,0.00010542,2]
[348229060,1736405447138,-500.0,0.00010542,2]
[348229062,1736405447147,-500.0,0.00010542,2]
[348229064,1736405447157,-500.0,0.00010542,2]
[348229066,1736405447168,-613.57961508,0.00010542,2]
[348229068,1736405447177,-500.0,0.00010542,2]
[348229070,1736405447186,-527.39,0.00010542,2]
[348229072,1736405447196,-500.0,0.00010542,2]
[348229074,1736405447205,-500.0,0.00010542,2]
[348229076,1736405447214,-500.0,0.00010542,2]